[Event "Czech Open GM 2020"]
[Site "Pardubice"]
[Date "2020.09.24"]
[Round "4.8"]
[White "Vogel, Roven"]
[Black "Rabatin, Jakub"]
[Result "1-0"]
[ECO "E68"]
[WhiteElo "2456"]
[BlackElo "2291"]
[Annotator "ChessBase"]
[PlyCount "81"]
[EventDate "2020.09.21"]
[EventCountry "CZE"]
[SourceTitle "playchess.com"]
[Source "ChessBase"]
[SourceQuality "1"]
[TimeControl "40/5400+30:1800+30"]

1. d4 {[%emt 0:00:06]} Nf6 {[%emt 0:00:00]} 2. c4 {[%emt 0:00:06]} g6 {[%emt 0:00:00]} 3. Nc3 {[%emt 0:00:10]} Bg7 {[%emt 0:00:00]} 4. g3 {[%emt 0:00:09]} O-O {[%emt 0:00:00]} 5. Bg2 {[%emt 0:00:06]} d6 {[%emt 0:00:00]} 6. Nf3 {[%emt 0:00:09]} Nbd7 {[%emt 0:01:03]} 7. O-O {[%emt 0:00:13]} e5 {[%emt 0:00:05]} 8. e4 {[%emt 0:00:10]} exd4 {[%emt 0:05:38]} 9. Nxd4 {[%emt 0:00:12]} Re8 {[%emt 0:00:07]} 10. h3 {[%emt 0:00:35]} Nc5 {[%emt 0:00:27]} 11. Re1 {[%emt 0:00:31]} a5 {[%emt 0:02:27]} 12. Ndb5 {[%emt 0:05:32]} Bd7 {[%emt 0:01:31]} 13. Bf4 {[%emt 0:03:38]} Bxb5 {[%emt 0:13:40]} 14. cxb5 {[%emt 0:00:34]} Nfd7 {[%emt 0:00:07]} 15. Qc2 {[%emt 0:08:33]} h5 {[%emt 0:01:11]} 16. h4 {[%emt 0:04:09]} Ne6 {[%emt 0:07:26]} 17. Be3 {[%emt 0:02:41]} Ne5 {[%emt 0:01:20]} 18. Rad1 {[%emt 0:02:11]} Rb8 {[%emt 0:13:26]} 19. f4 {[%emt 0:30:44]} Ng4 {[%emt 0:04:16]} 20. e5 {[%emt 0:00:09]} Qc8 {[%emt 0:26:42]} 21. f5 {[%emt 0:02:39]} gxf5 {[%emt 0:07:29]} 22. Qxf5 {[%emt 0:02:59]} Bxe5 {[%emt 0:01:06]} 23. Rf1 {[%emt 0:03:20]} Ng7 {[%emt 0:06:38]} 24. Qxf7+ {[%emt 0:00:45]} Kh8 {[%emt 0:00:03]} 25. Ba7 {[%emt 0:03:39]} Ra8 {[%emt 0:01:38]} 26. Bd4 {[%emt 0:00:15]} Rf8 {[%emt 0:02:48]} 27. Qxf8+ {[%emt 0:03:59]} Qxf8 {[%emt 0:00:01]} 28. Rxf8+ {[%emt 0:00:08]} Rxf8 {[%emt 0:00:02]} 29. Bxe5 {[%emt 0:01:09]} dxe5 {[%emt 0:04:35]} 30. Rd7 {[%emt 0:00:32]} Ne6 {[%emt 0:00:34]} 31. Bxb7 {[%emt 0:05:27]} Nd4 {[%emt 0:00:05]} 32. Be4 {[%emt 0:02:35]} Ne3 {[%emt 0:00:38]} 33. Rh7+ {[%emt 0:01:12]} Kg8 {[%emt 0:00:03]} 34. Rxh5 {[%emt 0:00:05]} Rf1+ {[%emt 0:00:52]} 35. Kh2 {[%emt 0:00:02]} Rf2+ {[%emt 0:00:55]} 36. Kh3 {[%emt 0:00:19]} Rxb2 {[%emt 0:00:33]} 37. Rxe5 {[%emt 0:00:30]} Nf1 {[%emt 0:00:31]} 38. Bg2 {[%emt 0:01:46]} Nd2 {[%emt 0:00:21]} 39. Rc5 {[%emt 0:01:32]} Rc2 {[%emt 0:00:37]} 40. Rxc7 {[%emt 0:00:39]} Nb1 {[%emt 0:00:29]} 41. b6 {[%emt 0:31:02]} 1-0

[Event "Czech Open GM 2020"]
[Site "Pardubice"]
[Date "2020.09.24"]
[Round "4.9"]
[White "Jarmula, Lukasz"]
[Black "Brozka, Karel"]
[Result "1-0"]
[ECO "E85"]
[WhiteElo "2444"]
[BlackElo "2025"]
[Annotator "NA"]
[PlyCount "57"]
[EventDate "2020.09.21"]
[EventCountry "CZE"]
[SourceTitle "playchess.com"]
[Source "ChessBase"]
[SourceQuality "1"]
[TimeControl "40/5400+30:1800+30"]

1. d4 {[%emt 0:00:00]} Nf6 {[%emt 0:00:00]} 2. c4 {[%emt 0:00:00]} g6 {[%emt 0:00:00]} 3. f3 {[%emt 0:00:00]} Bg7 {[%emt 0:00:19]} 4. e4 {[%emt 0:00:00]} d6 {[%emt 0:00:27]} 5. Nc3 {[%emt 0:00:00]} O-O {[%emt 0:02:08]} 6. Nge2 {[%emt 0:00:07]} e5 {[%emt 0:00:55]} 7. Be3 {[%emt 0:00:44]} Nbd7 {[%emt 0:04:08]} 8. Qd2 {[%emt 0:00:53]} Re8 {[%emt 0:02:09]} 9. d5 {[%emt 0:03:15]} a5 {[%emt 0:06:50]} 10. O-O-O {[%emt 0:03:30]} b6 {[%emt 0:04:35]} 11. g4 {[%emt 0:05:48]} Nc5 {[%emt 0:09:46]} 12. Ng3 {[%emt 0:00:40]} Nfd7 {[%emt 0:09:02]} 13. h4 {[%emt 0:00:47]} f6 {[%emt 0:02:41]} 14. g5 {[%emt 0:01:38]} Nf8 {[%emt 0:02:14]} 15. h5 {[%emt 0:03:35]} f5 {[%emt 0:07:29]} 16. exf5 {[%emt 0:00:20]} gxf5 {[%emt 0:00:34]} 17. f4 {[%emt 0:00:11]} exf4 {[%emt 0:00:33]} 18. Bxf4 {[%emt 0:00:07]} Ne4 {[%emt 0:00:33]} 19. Ncxe4 {[%emt 0:01:16]} fxe4 {[%emt 0:00:39]} 20. Re1 {[%emt 0:01:06]} Bg4 {[%emt 0:05:02]} 21. Nxe4 {[%emt 0:02:51]} Bf3 {[%emt 0:02:25]} 22. Bg2 {[%emt 0:00:42]} Bxg2 {[%emt 0:00:07]} 23. Qxg2 {[%emt 0:00:13]} Nd7 {[%emt 0:03:05]} 24. h6 {[%emt 0:01:35]} Be5 {[%emt 0:01:12]} 25. Nf6+ {[%emt 0:03:02]} Kh8 {[%emt 0:00:55]} 26. Nxe8 {[%emt 0:00:29]} Bxf4+ {[%emt 0:00:14]} 27. Kb1 {[%emt 0:00:09]} Ne5 {[%emt 0:00:48]} 28. Nf6 {[%emt 0:00:35]} Nxc4 {[%emt 0:01:00]} 29. Qc2 {[%emt 0:00:22]} 1-0

[Event "Czech Open GM 2020"]
[Site "Pardubice"]
[Date "2020.09.24"]
[Round "4.10"]
[White "Krasteva, Beloslava"]
[Black "Koziak, Vitali"]
[Result "1-0"]
[ECO "D85"]
[WhiteElo "2296"]
[BlackElo "2434"]
[Annotator "NA"]
[PlyCount "67"]
[EventDate "2020.09.21"]
[EventCountry "CZE"]
[SourceTitle "playchess.com"]
[Source "ChessBase"]
[SourceQuality "1"]
[TimeControl "40/5400+30:1800+30"]

1. d4 {[%emt 0:00:00]} Nf6 {[%emt 0:00:00]} 2. c4 {[%emt 0:00:00]} g6 {[%emt 0:00:00]} 3. Nc3 {[%emt 0:00:07]} d5 {[%emt 0:00:00]} 4. cxd5 {[%emt 0:01:02]} Nxd5 {[%emt 0:00:00]} 5. e4 {[%emt 0:00:07]} Nxc3 {[%emt 0:00:03]} 6. bxc3 {[%emt 0:00:05]} Bg7 {[%emt 0:00:05]} 7. Be3 {[%emt 0:00:16]} c5 {[%emt 0:01:01]} 8. Rc1 {[%emt 0:01:06]} Qa5 {[%emt 0:06:17]} 9. Qd2 {[%emt 0:00:49]} cxd4 {[%emt 0:04:16]} 10. cxd4 {[%emt 0:00:07]} Qxd2+ {[%emt 0:00:14]} 11. Bxd2 {[%emt 0:00:05]} O-O {[%emt 0:01:17]} 12. Be3 {[%emt 0:05:25]} Nc6 {[%emt 0:10:15]} 13. d5 {[%emt 0:03:17]} Nb4 {[%emt 0:03:40]} 14. Bd2 {[%emt 0:07:01]} a5 {[%emt 0:01:59]} 15. a3 {[%emt 0:03:44]} Bb2 {[%emt 0:03:30]} 16. axb4 {[%emt 0:03:43]} Bxc1 {[%emt 0:00:13]} 17. Bxc1 {[%emt 0:00:07]} axb4 {[%emt 0:00:28]} 18. Bd3 {[%emt 0:08:03]} e6 {[%emt 0:22:07]} 19. d6 {[%emt 0:11:12]} Ra1 {[%emt 0:00:19]} 20. Ne2 {[%emt 0:00:22]} e5 {[%emt 0:00:58]} 21. f4 {[%emt 0:02:01]} exf4 {[%emt 0:10:42]} 22. O-O {[%emt 0:00:57]} g5 {[%emt 0:02:15]} 23. Bb2 {[%emt 0:03:30]} Rxf1+ {[%emt 0:05:57]} 24. Kxf1 {[%emt 0:00:02]} Bd7 {[%emt 0:13:16]} 25. Bf6 {[%emt 0:10:46]} Ra8 {[%emt 0:05:33]} 26. Bc4 {[%emt 0:04:00]} h6 {[%emt 0:03:48]} 27. Ke1 {[%emt 0:03:09]} Ra3 {[%emt 0:02:34]} 28. Bd5 {[%emt 0:06:03]} b6 {[%emt 0:00:45]} 29. Nd4 {[%emt 0:03:09]} Ra1+ {[%emt 0:00:02]} 30. Kd2 {[%emt 0:00:22]} g4 {[%emt 0:01:11]} 31. e5 {[%emt 0:06:00]} Kf8 {[%emt 0:00:11]} 32. e6 {[%emt 0:01:44]} fxe6 {[%emt 0:00:07]} 33. Nxe6+ {[%emt 0:02:18]} Bxe6 {[%emt 0:00:11]} 34. Bxe6 {[%emt 0:00:08]} 1-0

[Event "Czech Open GM 2020"]
[Site "Pardubice"]
[Date "2020.09.24"]
[Round "4.12"]
[White "Pogan, Nikolas"]
[Black "Lizak, Peter"]
[Result "1/2-1/2"]
[ECO "A50"]
[WhiteElo "2212"]
[BlackElo "2457"]
[Annotator "ChessBase"]
[PlyCount "57"]
[EventDate "2020.09.21"]
[EventCountry "CZE"]
[SourceTitle "playchess.com"]
[Source "ChessBase"]
[SourceQuality "1"]
[TimeControl "40/5400+30:1800+30"]

1. Nf3 {[%emt 0:01:32]} Nf6 {[%emt 0:00:11]} 2. c4 {[%emt 0:00:36]} b6 {[%emt 0:04:30]} 3. g3 {[%emt 0:00:24]} Bb7 {[%emt 0:00:07]} 4. Bg2 {[%emt 0:00:04]} g6 {[%emt 0:00:11]} 5. Nc3 {[%emt 0:00:06]} Bg7 {[%emt 0:00:07]} 6. O-O {[%emt 0:00:09]} O-O {[%emt 0:00:06]} 7. d4 {[%emt 0:00:03]} Ne4 {[%emt 0:00:21]} 8. Nxe4 {[%emt 0:00:04]} Bxe4 {[%emt 0:00:10]} 9. Be3 {[%emt 0:00:02]} d6 {[%emt 0:00:52]} 10. Qd2 {[%emt 0:00:26]} Nd7 {[%emt 0:00:21]} 11. Bh6 {[%emt 0:02:36]} c5 {[%emt 0:02:58]} 12. Bxg7 {[%emt 0:03:49]} Kxg7 {[%emt 0:00:10]} 13. Rac1 {[%emt 0:00:27]} Nf6 {[%emt 0:01:04]} 14. Rfd1 {[%emt 0:00:25]} Qc7 {[%emt 0:01:51]} 15. Qc3 {[%emt 0:03:27]} Rab8 {[%emt 0:13:47]} 16. Nd2 {[%emt 0:17:03]} Bxg2 {[%emt 0:05:52]} 17. Kxg2 {[%emt 0:00:15]} cxd4 {[%emt 0:00:39]} 18. Qxd4 {[%emt 0:00:21]} Qc6+ {[%emt 0:06:40]} 19. f3 {[%emt 0:03:12]} Rfd8 {[%emt 0:04:50]} 20. e4 {[%emt 0:09:21]} Qa4 {[%emt 0:10:49]} 21. b3 {[%emt 0:08:47]} Qa3 {[%emt 0:02:42]} 22. Qa1 {[%emt 0:00:39]} Qc5 {[%emt 0:07:29]} 23. Nb1 {[%emt 0:01:30]} Rbc8 {[%emt 0:17:04]} 24. Nc3 {[%emt 0:00:28]} Kg8 {[%emt 0:04:33]} 25. Qb2 {[%emt 0:10:03]} Qe5 {[%emt 0:01:33]} 26. Qf2 {[%emt 0:05:36]} Qc5 {[%emt 0:04:23]} 27. Qb2 {[%emt 0:04:04]} Qe5 {[%emt 0:01:04]} 28. Qf2 {[%emt 0:00:07]} Qc5 {[%emt 0:06:09]} 29. Qb2 {[%emt 0:06:05]} 1/2-1/2

[Event "Czech Open GM 2020"]
[Site "Pardubice"]
[Date "2020.09.24"]
[Round "4.13"]
[White "Kusa, Jakub"]
[Black "Zwardon, Vojtech"]
[Result "0-1"]
[ECO "B31"]
[WhiteElo "2200"]
[BlackElo "2455"]
[Annotator "ChessBase"]
[PlyCount "74"]
[EventDate "2020.09.21"]
[EventCountry "CZE"]
[SourceTitle "playchess.com"]
[Source "ChessBase"]
[SourceQuality "1"]
[TimeControl "40/5400+30:1800+30"]

1. e4 {[%emt 0:00:00]} c5 {[%emt 0:06:07]} 2. Nf3 {[%emt 0:00:00]} Nc6 {[%emt 0:00:04]} 3. Bb5 {[%emt 0:00:01]} g6 {[%emt 0:00:06]} 4. Bxc6 {[%emt 0:00:09]} dxc6 {[%emt 0:00:03]} 5. d3 {[%emt 0:00:15]} Bg7 {[%emt 0:00:02]} 6. h3 {[%emt 0:00:18]} Nf6 {[%emt 0:00:04]} 7. Nc3 {[%emt 0:00:34]} O-O {[%emt 0:00:04]} 8. O-O {[%emt 0:00:24]} Qc7 {[%emt 0:00:27]} 9. Be3 {[%emt 0:01:23]} Nd7 {[%emt 0:00:31]} 10. Qd2 {[%emt 0:02:55]} Rd8 {[%emt 0:00:06]} 11. Nh2 {[%emt 0:04:29]} e5 {[%emt 0:10:03]} 12. Rad1 {[%emt 0:09:16]} b6 {[%emt 0:01:52]} 13. f4 {[%emt 0:01:24]} Ba6 {[%emt 0:02:59]} 14. Ng4 {[%emt 0:09:59]} h5 {[%emt 0:03:05]} 15. Nh2 {[%emt 0:03:35]} c4 {[%emt 0:00:24]} 16. d4 {[%emt 0:01:39]} exd4 {[%emt 0:01:23]} 17. Bxd4 {[%emt 0:01:05]} Nf8 {[%emt 0:00:33]} 18. Qe3 {[%emt 0:03:56]} Bh6 {[%emt 0:01:00]} 19. Qf2 {[%emt 0:10:44]} Rxd4 {[%emt 0:05:35]} 20. Qxd4 {[%emt 0:02:40]} Bxf4 {[%emt 0:00:30]} 21. Nf3 {[%emt 0:00:19]} b5 {[%emt 0:03:31]} 22. a3 {[%emt 0:03:52]} Re8 {[%emt 0:00:11]} 23. e5 {[%emt 0:04:10]} Bxe5 {[%emt 0:14:07]} 24. Nxe5 {[%emt 0:00:09]} Rxe5 {[%emt 0:00:05]} 25. Ne4 {[%emt 0:02:36]} Qb6 {[%emt 0:00:19]} 26. Nf6+ {[%emt 0:01:34]} Kg7 {[%emt 0:00:12]} 27. Qxb6 {[%emt 0:00:49]} axb6 {[%emt 0:00:02]} 28. Nd7 {[%emt 0:00:17]} Re7 {[%emt 0:00:16]} 29. Nxf8 {[%emt 0:01:19]} Kxf8 {[%emt 0:00:03]} 30. Rd6 {[%emt 0:01:27]} Rc7 {[%emt 0:00:10]} 31. Rxg6 {[%emt 0:02:16]} b4 {[%emt 0:00:03]} 32. Rg3 {[%emt 0:01:17]} h4 {[%emt 0:04:51]} 33. Re3 {[%emt 0:01:27]} c3 {[%emt 0:00:06]} 34. Rb1 {[%emt 0:01:06]} Rd7 {[%emt 0:00:03]} 35. axb4 {[%emt 0:02:03]} cxb2 {[%emt 0:00:14]} 36. Rxb2 {[%emt 0:01:17]} Rd1+ {[%emt 0:00:04]} 37. Kf2 {[%emt 0:03:02]} Rf1# {[%emt 0:00:07]} 0-1

[Event "Czech Open GM 2020"]
[Site "Pardubice"]
[Date "2020.09.24"]
[Round "4.14"]
[White "Jedlicka, Ales"]
[Black "Arkell, Keith C"]
[Result "1/2-1/2"]
[ECO "A40"]
[WhiteElo "2197"]
[BlackElo "2429"]
[Annotator "ChessBase"]
[PlyCount "131"]
[EventDate "2020.09.21"]
[EventCountry "CZE"]
[SourceTitle "playchess.com"]
[Source "ChessBase"]
[SourceQuality "1"]
[TimeControl "40/5400+30:1800+30"]

1. d4 {[%emt 0:00:00]} e6 {[%emt 0:07:23]} 2. c4 {[%emt 0:00:00]} Bb4+ {[%emt 0:00:05]} 3. Bd2 {[%emt 0:00:09]} Qe7 {[%emt 0:00:12]} 4. Nf3 {[%emt 0:00:14]} f5 {[%emt 0:00:55]} 5. g3 {[%emt 0:00:29]} b6 {[%emt 0:00:09]} 6. Bg2 {[%emt 0:00:13]} Bb7 {[%emt 0:00:04]} 7. O-O {[%emt 0:00:30]} Bxd2 {[%emt 0:00:09]} 8. Qxd2 {[%emt 0:00:16]} Nf6 {[%emt 0:00:05]} 9. Nc3 {[%emt 0:00:20]} Ne4 {[%emt 0:00:19]} 10. Qc2 {[%emt 0:00:21]} Nxc3 {[%emt 0:00:11]} 11. Qxc3 {[%emt 0:00:11]} d6 {[%emt 0:00:50]} 12. Rfd1 {[%emt 0:00:50]} Be4 {[%emt 0:00:29]} 13. Bf1 {[%emt 0:00:35]} Nd7 {[%emt 0:00:43]} 14. Nd2 {[%emt 0:00:19]} Bb7 {[%emt 0:00:07]} 15. b4 {[%emt 0:00:51]} O-O {[%emt 0:00:16]} 16. Bg2 {[%emt 0:04:15]} Bxg2 {[%emt 0:00:07]} 17. Kxg2 {[%emt 0:00:13]} e5 {[%emt 0:00:33]} 18. dxe5 {[%emt 0:00:28]} dxe5 {[%emt 0:00:12]} 19. Nb3 {[%emt 0:01:43]} Nf6 {[%emt 0:01:12]} 20. c5 {[%emt 0:00:39]} Rad8 {[%emt 0:02:17]} 21. Rac1 {[%emt 0:02:32]} Nd5 {[%emt 0:07:33]} 22. Qc4 {[%emt 0:02:56]} Qe6 {[%emt 0:04:46]} 23. cxb6 {[%emt 0:03:48]} cxb6 {[%emt 0:07:41]} 24. Rd2 {[%emt 0:03:59]} Rd6 {[%emt 0:02:17]} 25. Kg1 {[%emt 0:01:35]} Rfd8 {[%emt 0:01:10]} 26. e4 {[%emt 0:03:39]} fxe4 {[%emt 0:00:06]} 27. Qxe4 {[%emt 0:01:21]} Nf6 {[%emt 0:07:02]} 28. Rxd6 {[%emt 0:02:34]} Qxd6 {[%emt 0:10:26]} 29. Qc4+ {[%emt 0:00:27]} Qd5 {[%emt 0:04:33]} 30. Kf1 {[%emt 0:12:37]} Kf8 {[%emt 0:01:43]} 31. Qxd5 {[%emt 0:00:20]} Nxd5 {[%emt 0:00:07]} 32. a3 {[%emt 0:00:43]} Ke7 {[%emt 0:00:25]} 33. Ke2 {[%emt 0:00:20]} Ke6 {[%emt 0:00:55]} 34. Nd2 {[%emt 0:00:25]} Rd7 {[%emt 0:03:24]} 35. Ne4 {[%emt 0:01:02]} Nc7 {[%emt 0:01:12]} 36. a4 {[%emt 0:03:50]} Kf5 {[%emt 0:02:57]} 37. f3 {[%emt 0:02:00]} Ne6 {[%emt 0:02:16]} 38. Ke3 {[%emt 0:01:24]} Nd4 {[%emt 0:01:28]} 39. g4+ {[%emt 0:04:23]} Kg6 {[%emt 0:00:37]} 40. h4 {[%emt 0:01:59]} Rf7 {[%emt 0:07:40]} 41. h5+ {[%emt 0:36:39]} Kh6 {[%emt 0:30:01]} 42. Nd2 {[%emt 0:00:25]} g6 {[%emt 0:09:46]} 43. hxg6 {[%emt 0:00:15]} hxg6 {[%emt 0:00:18]} 44. b5 {[%emt 0:03:10]} Ne6 {[%emt 0:03:46]} 45. Ne4 {[%emt 0:03:26]} Rd7 {[%emt 0:02:20]} 46. Rc6 {[%emt 0:08:34]} Nf4 {[%emt 0:02:19]} 47. g5+ {[%emt 0:00:26]} Kg7 {[%emt 0:00:07]} 48. Nf6 {[%emt 0:01:04]} Re7 {[%emt 0:03:09]} 49. Rc8 {[%emt 0:06:07]} Kf7 {[%emt 0:00:00]} 50. Ng8 {[%emt 0:00:00]} Rd7 {[%emt 0:00:00]} 51. Nf6 {[%emt 0:00:00]} Rd4 {[%emt 0:00:00]} 52. Rc7+ {[%emt 0:00:00]} Ke6 {[%emt 0:00:00]} 53. Rc6+ {[%emt 0:00:00]} Kf5 {[%emt 0:00:00]} 54. Ne4 {[%emt 0:00:00]} Nd5+ {[%emt 0:00:00]} 55. Kf2 {[%emt 0:00:00]} Kf4 {[%emt 0:02:08]} 56. Rxg6 {[%emt 0:00:00]} Rxa4 {[%emt 0:00:54]} 57. Rd6 {[%emt 0:00:00]} Ra2+ {[%emt 0:00:47]} 58. Kg1 {[%emt 0:00:00]} Kxf3 {[%emt 0:04:14]} 59. Rxd5 {[%emt 0:00:00]} Ra1+ {[%emt 0:00:58]} 60. Kh2 {[%emt 0:00:00]} Kxe4 {[%emt 0:00:02]} 61. g6 {[%emt 0:01:25]} Rc1 {[%emt 0:00:12]} 62. g7 {[%emt 0:00:46]} Rc8 {[%emt 0:00:08]} 63. Rd7 {[%emt 0:00:25]} Kf5 {[%emt 0:02:17]} 64. Rxa7 {[%emt 0:00:27]} Kg6 {[%emt 0:02:55]} 65. Rb7 {[%emt 0:00:50]} Kh7 {[%emt 0:00:36]} 66. Rxb6 {[%emt 0:02:00]} 1/2-1/2

[Event "Czech Open GM 2020"]
[Site "Pardubice"]
[Date "2020.09.24"]
[Round "4.15"]
[White "Crevatin, Leo"]
[Black "Jurcik, Marian"]
[Result "0-1"]
[ECO "A42"]
[WhiteElo "2188"]
[BlackElo "2426"]
[Annotator "ChessBase"]
[PlyCount "87"]
[EventDate "2020.09.21"]
[EventCountry "CZE"]
[SourceTitle "playchess.com"]
[Source "ChessBase"]
[SourceQuality "1"]
[TimeControl "40/5400+30:1800+30"]

1. d4 {[%emt 0:00:00]} d6 {[%emt 0:05:25]} 2. e4 {[%emt 0:02:10]} g6 {[%emt 0:03:18]} 3. c4 {[%emt 0:00:21]} e5 {[%emt 0:06:05]} 4. Ne2 {[%emt 0:02:42]} Bg7 {[%emt 0:07:06]} 5. Nbc3 {[%emt 0:02:14]} Ne7 {[%emt 0:04:08]} 6. h4 {[%emt 0:12:30]} exd4 {[%emt 0:01:41]} 7. Nxd4 {[%emt 0:00:34]} Nbc6 {[%emt 0:08:33]} 8. Be3 {[%emt 0:01:04]} h5 {[%emt 0:01:03]} 9. Be2 {[%emt 0:04:24]} a6 {[%emt 0:03:18]} 10. Qd2 {[%emt 0:12:56]} Ne5 {[%emt 0:10:23]} 11. f3 {[%emt 0:07:18]} c5 {[%emt 0:01:37]} 12. Nc2 {[%emt 0:02:46]} Be6 {[%emt 0:00:13]} 13. b3 {[%emt 0:06:05]} Qa5 {[%emt 0:07:13]} 14. Nd5 {[%emt 0:04:30]} Qxd2+ {[%emt 0:00:53]} 15. Kxd2 {[%emt 0:00:42]} Nxd5 {[%emt 0:02:27]} 16. cxd5 {[%emt 0:04:05]} Bd7 {[%emt 0:00:43]} 17. a4 {[%emt 0:02:37]} f5 {[%emt 0:05:26]} 18. exf5 {[%emt 0:05:44]} Bxf5 {[%emt 0:00:20]} 19. Na3 {[%emt 0:01:48]} O-O {[%emt 0:01:11]} 20. a5 {[%emt 0:06:27]} Rab8 {[%emt 0:12:11]} 21. Ra2 {[%emt 0:07:10]} b5 {[%emt 0:00:02]} 22. axb6 {[%emt 0:00:12]} Rxb6 {[%emt 0:00:02]} 23. Nc4 {[%emt 0:01:02]} Rxb3 {[%emt 0:01:56]} 24. Nxd6 {[%emt 0:00:51]} Bb1 {[%emt 0:00:46]} 25. Rxb1 {[%emt 0:02:44]} Rxb1 {[%emt 0:00:03]} 26. Bxc5 {[%emt 0:00:50]} Rfb8 {[%emt 0:08:05]} 27. Ke3 {[%emt 0:03:38]} Nd7 {[%emt 0:00:47]} 28. Ba7 {[%emt 0:01:58]} R8b2 {[%emt 0:02:44]} 29. Rxb2 {[%emt 0:01:13]} Rxb2 {[%emt 0:00:03]} 30. Ne4 {[%emt 0:00:37]} a5 {[%emt 0:00:17]} 31. d6 {[%emt 0:00:42]} Rb4 {[%emt 0:02:16]} 32. Ba6 {[%emt 0:01:44]} Kf8 {[%emt 0:02:14]} 33. Ng5 {[%emt 0:00:48]} Bh6 {[%emt 0:00:55]} 34. f4 {[%emt 0:00:55]} Bxg5 {[%emt 0:00:19]} 35. hxg5 {[%emt 0:00:03]} a4 {[%emt 0:00:17]} 36. Bd4 {[%emt 0:00:34]} a3 {[%emt 0:00:20]} 37. Bh8 {[%emt 0:01:10]} a2 {[%emt 0:01:21]} 38. Bc8 {[%emt 0:00:26]} Ke8 {[%emt 0:00:37]} 39. f5 {[%emt 0:00:29]} gxf5 {[%emt 0:00:13]} 40. g6 {[%emt 0:00:43]} Rg4 {[%emt 0:02:02]} 41. g7 {[%emt 0:02:32]} Nf6 {[%emt 0:06:14]} 42. g8=Q+ {[%emt 0:02:52]} Rxg8 {[%emt 0:00:45]} 43. Bxf6 {[%emt 0:00:11]} Kf7 {[%emt 0:00:04]} 44. Kd4 {[%emt 0:00:20]} 0-1

[Event "Czech Open GM 2020"]
[Site "Pardubice"]
[Date "2020.09.24"]
[Round "4.16"]
[White "Pantzar, Milton"]
[Black "Lorscheid, Gerhard"]
[Result "1-0"]
[ECO "E72"]
[WhiteElo "2424"]
[BlackElo "2185"]
[Annotator "NA"]
[PlyCount "49"]
[EventDate "2020.09.21"]
[EventCountry "CZE"]
[SourceTitle "playchess.com"]
[Source "ChessBase"]
[SourceQuality "1"]
[TimeControl "40/5400+30:1800+30"]

1. d4 {[%emt 0:00:00]} d6 {[%emt 0:00:09]} 2. c4 {[%emt 0:00:00]} Nf6 {[%emt 0:01:03]} 3. Nc3 {[%emt 0:00:04]} Nbd7 {[%emt 0:00:07]} 4. e4 {[%emt 0:02:25]} e5 {[%emt 0:00:06]} 5. Nge2 {[%emt 0:03:06]} c6 {[%emt 0:02:16]} 6. g3 {[%emt 0:02:21]} g6 {[%emt 0:04:05]} 7. Bg2 {[%emt 0:01:15]} Bg7 {[%emt 0:00:06]} 8. O-O {[%emt 0:00:10]} O-O {[%emt 0:00:05]} 9. h3 {[%emt 0:03:40]} Qb6 {[%emt 0:00:45]} 10. Be3 {[%emt 0:07:26]} Qxb2 {[%emt 0:05:51]} 11. a3 {[%emt 0:06:30]} exd4 {[%emt 0:16:58]} 12. Bxd4 {[%emt 0:01:34]} c5 {[%emt 0:00:17]} 13. Na4 {[%emt 0:01:00]} Qxd4 {[%emt 0:00:40]} 14. Nxd4 {[%emt 0:00:04]} cxd4 {[%emt 0:00:05]} 15. Qxd4 {[%emt 0:16:29]} Ne8 {[%emt 0:01:25]} 16. Qe3 {[%emt 0:00:44]} Bxa1 {[%emt 0:00:21]} 17. Rxa1 {[%emt 0:00:06]} Ne5 {[%emt 0:03:52]} 18. c5 {[%emt 0:03:48]} Nc6 {[%emt 0:04:25]} 19. Rd1 {[%emt 0:01:45]} dxc5 {[%emt 0:01:14]} 20. Nxc5 {[%emt 0:00:45]} Ng7 {[%emt 0:02:15]} 21. f4 {[%emt 0:04:07]} Ne6 {[%emt 0:03:47]} 22. Nxe6 {[%emt 0:05:49]} Bxe6 {[%emt 0:00:26]} 23. f5 {[%emt 0:02:44]} gxf5 {[%emt 0:00:05]} 24. Qg5+ {[%emt 0:00:35]} Kh8 {[%emt 0:00:02]} 25. Qf6+ {[%emt 0:00:12]} 1-0

[Event "Czech Open GM 2020"]
[Site "Pardubice"]
[Date "2020.09.24"]
[Round "4.18"]
[White "Storme, Isak"]
[Black "Schimnatkowski, Lukas"]
[Result "1-0"]
[ECO "B75"]
[WhiteElo "2353"]
[BlackElo "2148"]
[Annotator "NA"]
[PlyCount "85"]
[EventDate "2020.09.21"]
[EventCountry "CZE"]
[SourceTitle "playchess.com"]
[Source "ChessBase"]
[SourceQuality "1"]
[TimeControl "40/5400+30:1800+30"]

1. e4 {[%emt 0:47:09]} c5 {[%emt 0:00:13]} 2. Nf3 {[%emt 0:00:12]} d6 {[%emt 0:00:15]} 3. d4 {[%emt 0:00:06]} cxd4 {[%emt 0:00:07]} 4. Nxd4 {[%emt 0:00:05]} Nf6 {[%emt 0:00:06]} 5. Nc3 {[%emt 0:00:06]} g6 {[%emt 0:00:07]} 6. Be3 {[%emt 0:00:04]} Bg7 {[%emt 0:00:05]} 7. f3 {[%emt 0:00:08]} a6 {[%emt 0:00:06]} 8. Qd2 {[%emt 0:00:10]} Nbd7 {[%emt 0:00:06]} 9. g4 {[%emt 0:00:25]} b5 {[%emt 0:00:09]} 10. h4 {[%emt 0:00:44]} Ne5 {[%emt 0:00:11]} 11. h5 {[%emt 0:04:00]} b4 {[%emt 0:00:09]} 12. Nd5 {[%emt 0:11:37]} gxh5 {[%emt 0:02:35]} 13. Nxf6+ {[%emt 0:10:42]} Bxf6 {[%emt 0:00:51]} 14. g5 {[%emt 0:02:41]} Nxf3+ {[%emt 0:03:11]} 15. Nxf3 {[%emt 0:04:09]} Bxb2 {[%emt 0:00:06]} 16. Bd4 {[%emt 0:03:10]} Bxa1 {[%emt 0:00:05]} 17. Bxa1 {[%emt 0:00:14]} e5 {[%emt 0:00:04]} 18. Bc4 {[%emt 0:09:15]} Bg4 {[%emt 0:21:48]} 19. Rf1 {[%emt 0:05:44]} O-O {[%emt 0:10:59]} 20. Nd4 {[%emt 0:08:02]} Rc8 {[%emt 0:13:31]} 21. Bd5 {[%emt 0:06:42]} exd4 {[%emt 0:05:51]} 22. Qxd4 {[%emt 0:00:19]} Rc3 {[%emt 0:00:14]} 23. Rf6 {[%emt 0:08:31]} Qe7 {[%emt 0:13:13]} 24. g6 {[%emt 0:07:51]} Qe5 {[%emt 0:02:24]} 25. Qxe5 {[%emt 0:02:16]} dxe5 {[%emt 0:00:18]} 26. Bxc3 {[%emt 0:00:12]} bxc3 {[%emt 0:00:47]} 27. gxf7+ {[%emt 0:00:08]} Kg7 {[%emt 0:00:10]} 28. Rxa6 {[%emt 0:00:09]} h4 {[%emt 0:11:09]} 29. Kf2 {[%emt 0:03:24]} Bh5 {[%emt 0:06:59]} 30. a4 {[%emt 0:01:43]} Bd1 {[%emt 0:00:46]} 31. Rc6 {[%emt 0:00:44]} Bxc2 {[%emt 0:02:53]} 32. a5 {[%emt 0:00:04]} Bxe4 {[%emt 0:05:42]} 33. Bxe4 {[%emt 0:00:06]} Rxf7+ {[%emt 0:00:08]} 34. Ke3 {[%emt 0:00:24]} Rf1 {[%emt 0:00:49]} 35. a6 {[%emt 0:02:36]} Ra1 {[%emt 0:00:49]} 36. Rc7+ {[%emt 0:00:10]} Kf6 {[%emt 0:00:31]} 37. a7 {[%emt 0:00:22]} c2 {[%emt 0:00:22]} 38. a8=Q {[%emt 0:00:24]} c1=Q+ {[%emt 0:00:20]} 39. Rxc1 {[%emt 0:00:09]} Rxc1 {[%emt 0:00:05]} 40. Qf8+ {[%emt 0:00:17]} Kg5 {[%emt 0:00:20]} 41. Qf5+ {[%emt 0:00:08]} Kh6 {[%emt 0:00:06]} 42. Qf6+ {[%emt 0:00:08]} Kh5 {[%emt 0:00:07]} 43. Bf3# {[%emt 0:00:05]} 1-0